[Event "Fast Chess"]
[Site "ChessKid.com"]
[Date "2020.04.01"]
[Round "2"]
[White "Hessenberger, Oliver"]
[Black "Sasse, Gabriel"]
[Result "1-0"]
[ECO "C48"]
[WhiteElo "1234"]
[BlackElo "1178"]
[PlyCount "81"]
[EventDate "2020.??.??"]
[TimeControl "300+10"]
[WhiteClock "0:02:40"]
[BlackClock "0:00:19"]

1. e4 {[%emt 0:00:09]} e5 {[%emt 0:00:10]} 2. Nf3 {[%emt 0:00:12]} Nc6 {
[%emt 0:00:10]} 3. Nc3 {[%emt 0:00:11]} Bc5 {[%emt 0:00:10]} 4. Bb5 {[%emt 0:
00:18]} Nf6 {[%emt 0:00:10]} 5. Bxc6 {[%emt 0:00:12]} dxc6 {[%emt 0:00:11]} 6.
Nxe5 {[%emt 0:00:13]} O-O {[%emt 0:00:18]} 7. O-O {[%emt 0:00:13]} Bd6 {
[%emt 0:00:20]} 8. Nf3 {[%emt 0:00:14]} Nh5 {[%emt 0:00:15]} 9. d3 {[%emt 0:00:
23]} Qf6 {[%emt 0:00:12]} 10. Ng5 {[%emt 0:00:13]} Qg6 {[%emt 0:00:14]} 11. Qe1
{[%emt 0:00:35]} h6 {[%emt 0:00:12]} 12. Nf3 {[%emt 0:00:14]} Bh3 {[%emt 0:00:
11]} 13. Nh4 {[%emt 0:00:34]} Qg4 {[%emt 0:00:16]} 14. f3 {[%emt 0:00:20]} Bc5+
{[%emt 0:00:18]} 15. Be3 {[%emt 0:00:18]} Bxe3+ {[%emt 0:00:12]} 16. Qxe3 {
[%emt 0:00:16]} Qd7 {[%emt 0:00:20]} 17. Nf5 {[%emt 0:00:21]} Bxf5 {[%emt 0:00:
15]} 18. exf5 {[%emt 0:00:15]} Qxf5 {[%emt 0:00:11]} 19. Qf2 {[%emt 0:00:24]}
Rae8 {[%emt 0:00:31]} 20. Rae1 {[%emt 0:00:14]} Rxe1 {[%emt 0:00:12]} 21. Rxe1
{[%emt 0:00:19]} c5 {[%emt 0:00:15]} 22. Nb5 {[%emt 0:00:16]} c6 {[%emt 0:00:
12]} 23. Nxa7 {[%emt 0:00:14]} Ra8 {[%emt 0:00:19]} 24. d4 {[%emt 0:00:25]}
cxd4 {[%emt 0:00:11]} 25. c3 {[%emt 0:00:19]} dxc3 {[%emt 0:00:11]} 26. bxc3 {
[%emt 0:00:11]} Qd7 {[%emt 0:00:14]} 27. g4 {[%emt 0:00:15]} Nf6 {[%emt 0:00:
13]} 28. c4 {[%emt 0:00:29]} b6 {[%emt 0:00:12]} 29. a4 {[%emt 0:00:37]} Rxa7 {
[%emt 0:00:13]} 30. Rb1 {[%emt 0:00:14]} Rxa4 {[%emt 0:00:17]} 31. Rxb6 {
[%emt 0:00:12]} Qd1+ {[%emt 0:00:12]} 32. Qf1 {[%emt 0:00:12]} Qxf1+ {[%emt 0:
00:11]} 33. Kxf1 {[%emt 0:00:12]} Rxc4 {[%emt 0:00:10]} 34. Rb8+ {[%emt 0:00:
13]} Kh7 {[%emt 0:00:11]} 35. Rb7 {[%emt 0:00:19]} Kg6 {[%emt 0:00:14]} 36. h4
{[%emt 0:00:14]} Nd5 {[%emt 0:00:13]} 37. h5+ {[%emt 0:00:14]} Kg5 {[%emt 0:00:
11]} 38. Rxf7 {[%emt 0:00:13]} Ne3+ {[%emt 0:00:14]} 39. Kf2 {[%emt 0:00:11]}
Nd1+ {[%emt 0:00:11]} 40. Kg3 {[%emt 0:00:12]} Rc3 {[%emt 0:00:13]} 41. Rf5# {
[%emt 0:00:13] VastMellowGhost won by checkmate} 1-0

[Event "Fast Chess"]
[Site "ChessKid.com"]
[Date "2020.04.01"]
[Round "2"]
[White "Li, Patrick"]
[Black "Li, Tobias"]
[Result "0-1"]
[ECO "C57"]
[WhiteElo "975"]
[BlackElo "1230"]
[PlyCount "150"]
[EventDate "2020.??.??"]
[TimeControl "300+10"]
[WhiteClock "0:02:00"]
[BlackClock "0:01:17"]

1. e4 {[%emt 0:00:20]} e5 {[%emt 0:00:12]} 2. Nf3 {[%emt 0:00:10]} Nc6 {
[%emt 0:00:11]} 3. Nc3 {[%emt 0:00:12]} Nf6 {[%emt 0:00:11]} 4. Bc4 {[%emt 0:
00:11]} Bc5 {[%emt 0:00:17]} 5. Ng5 {[%emt 0:00:10]} O-O {[%emt 0:00:11]} 6.
Nxf7 {[%emt 0:00:12]} Rxf7 {[%emt 0:00:10]} 7. Bxf7+ {[%emt 0:00:12]} Kxf7 {
[%emt 0:00:09]} 8. O-O {[%emt 0:00:11]} Kg8 {[%emt 0:00:15]} 9. h3 {[%emt 0:00:
13]} d6 {[%emt 0:00:10]} 10. Qf3 {[%emt 0:00:18]} Nd4 {[%emt 0:00:18]} 11. Qd3
{[%emt 0:00:19]} Nc6 {[%emt 0:00:26]} 12. Nd5 {[%emt 0:00:14]} Nxd5 {[%emt 0:
00:17]} 13. exd5 {[%emt 0:00:15]} Nb4 {[%emt 0:00:11]} 14. Qc4 {[%emt 0:00:21]}
Qe8 {[%emt 0:00:21]} 15. Re1 {[%emt 0:00:10]} Qf7 {[%emt 0:00:12]} 16. Re4 {
[%emt 0:00:14]} Qxd5 {[%emt 0:00:14]} 17. Qxd5+ {[%emt 0:00:13]} Nxd5 {[%emt 0:
00:11]} 18. Rc4 {[%emt 0:00:14]} Nb4 {[%emt 0:00:12]} 19. c3 {[%emt 0:00:13]}
b5 {[%emt 0:00:12]} 20. Rh4 {[%emt 0:00:18]} Nc6 {[%emt 0:00:17]} 21. d3 {
[%emt 0:00:19]} Bb6 {[%emt 0:00:13]} 22. Bg5 {[%emt 0:00:15]} h6 {[%emt 0:00:
14]} 23. Be3 {[%emt 0:00:16]} Kh7 {[%emt 0:00:12]} 24. Bxb6 {[%emt 0:00:14]}
axb6 {[%emt 0:00:16]} 25. f4 {[%emt 0:00:20]} exf4 {[%emt 0:00:13]} 26. Rxf4 {
[%emt 0:00:10]} Ne7 {[%emt 0:00:12]} 27. d4 {[%emt 0:00:11]} Ng6 {[%emt 0:00:
11]} 28. Re4 {[%emt 0:00:19]} c5 {[%emt 0:00:12]} 29. dxc5 {[%emt 0:00:13]}
bxc5 {[%emt 0:00:11]} 30. c4 {[%emt 0:00:15]} bxc4 {[%emt 0:00:13]} 31. Rxc4 {
[%emt 0:00:10]} Be6 {[%emt 0:00:16]} 32. Re4 {[%emt 0:00:11]} Re8 {[%emt 0:00:
12]} 33. Ra4 {[%emt 0:00:13]} Bd7 {[%emt 0:00:17]} 34. Ra7 {[%emt 0:00:13]} Bc8
{[%emt 0:00:12]} 35. Ra4 {[%emt 0:00:16]} Ne5 {[%emt 0:00:15]} 36. Re4 {
[%emt 0:00:13]} Bd7 {[%emt 0:00:15]} 37. Rae1 {[%emt 0:00:20]} Bc6 {[%emt 0:00:
19]} 38. Rf4 {[%emt 0:00:15]} Nd3 {[%emt 0:00:15]} 39. Rxe8 {[%emt 0:00:19]}
Bxe8 {[%emt 0:00:13]} 40. b3 {[%emt 0:00:28]} Nxf4 {[%emt 0:00:11]} 41. g3 {
[%emt 0:00:15]} Nxh3+ {[%emt 0:00:11]} 42. Kh2 {[%emt 0:00:14]} Ng5 {[%emt 0:
00:10]} 43. Kg2 {[%emt 0:00:12]} Ne4 {[%emt 0:00:10]} 44. Kf1 {[%emt 0:00:12]}
Nd2+ {[%emt 0:00:11]} 45. Ke2 {[%emt 0:00:10]} Ne4 {[%emt 0:00:12]} 46. Ke3 {
[%emt 0:00:11]} Nxg3 {[%emt 0:00:11]} 47. Kd3 {[%emt 0:00:11]} Nf5 {[%emt 0:00:
11]} 48. Kc4 {[%emt 0:00:09]} Bg6 {[%emt 0:00:11]} 49. b4 {[%emt 0:00:10]} cxb4
{[%emt 0:00:12]} 50. a3 {[%emt 0:00:10]} bxa3 {[%emt 0:00:11]} 51. Kb3 {
[%emt 0:00:12]} a2 {[%emt 0:00:10]} 52. Kxa2 {[%emt 0:00:10]} d5 {[%emt 0:00:
11]} 53. Ka3 {[%emt 0:00:10]} d4 {[%emt 0:00:10]} 54. Ka4 {[%emt 0:00:09]} d3 {
[%emt 0:00:10]} 55. Kb3 {[%emt 0:00:10]} d2 {[%emt 0:00:10]} 56. Kc2 {[%emt 0:
00:10]} h5 {[%emt 0:00:12]} 57. Kxd2 {[%emt 0:00:11]} h4 {[%emt 0:00:09]} 58.
Ke2 {[%emt 0:00:10]} Kh6 {[%emt 0:00:11]} 59. Kf2 {[%emt 0:00:09]} Kh5 {
[%emt 0:00:10]} 60. Kg2 {[%emt 0:00:10]} Kg4 {[%emt 0:00:10]} 61. Kh2 {[%emt 0:
00:10]} h3 {[%emt 0:00:10]} 62. Kh1 {[%emt 0:00:11]} Kg3 {[%emt 0:00:10]} 63.
Kg1 {[%emt 0:00:12]} Bh7 {[%emt 0:00:13]} 64. Kh1 {[%emt 0:00:14]} Ne7 {
[%emt 0:00:10]} 65. Kg1 {[%emt 0:00:11]} Be4 {[%emt 0:00:10]} 66. Kf1 {[%emt 0:
00:14]} h2 {[%emt 0:00:10]} 67. Ke2 {[%emt 0:00:11]} h1=Q {[%emt 0:00:11]} 68.
Ke3 {[%emt 0:00:09]} Qf3+ {[%emt 0:00:11]} 69. Kd4 {[%emt 0:00:11]} Bg6 {
[%emt 0:00:15]} 70. Kc5 {[%emt 0:00:13]} Qd3 {[%emt 0:00:11]} 71. Kb6 {[%emt 0:
00:16]} Qc4 {[%emt 0:00:12]} 72. Kb7 {[%emt 0:00:09]} Qc5 {[%emt 0:00:11]} 73.
Ka8 {[%emt 0:00:10]} Qb5 {[%emt 0:00:11]} 74. Ka7 {[%emt 0:00:09]} Nc6+ {
[%emt 0:00:14]} 75. Ka8 {[%emt 0:00:09]} Qb8# {[%emt 0:00:11] OnlyHungryKiwi
won by checkmate} 0-1

[Event "Fast Chess"]
[Site "ChessKid.com"]
[Date "2020.04.01"]
[Round "3"]
[White "Hessenberger, Oliver"]
[Black "Georgiev, Maximilian"]
[Result "1/2-1/2"]
[ECO "C55"]
[WhiteElo "1248"]
[BlackElo "1363"]
[PlyCount "107"]
[EventDate "2020.??.??"]
[TimeControl "300+10"]
[WhiteClock "0:01:51"]
[BlackClock "0:00:40"]

1. e4 {[%emt 0:00:12]} e5 {[%emt 0:00:11]} 2. Nf3 {[%emt 0:00:10]} Nc6 {
[%emt 0:00:10]} 3. Nc3 {[%emt 0:00:10]} Nf6 {[%emt 0:00:12]} 4. Bc4 {[%emt 0:
00:11]} h6 {[%emt 0:00:11]} 5. Bb5 {[%emt 0:00:13]} d6 {[%emt 0:00:11]} 6.
Bxc6+ {[%emt 0:00:13]} bxc6 {[%emt 0:00:11]} 7. O-O {[%emt 0:00:14]} Bg4 {
[%emt 0:00:11]} 8. b3 {[%emt 0:00:22]} d5 {[%emt 0:00:12]} 9. d3 {[%emt 0:00:
14]} d4 {[%emt 0:00:13]} 10. Na4 {[%emt 0:00:24]} Be7 {[%emt 0:00:16]} 11. h3 {
[%emt 0:00:13]} Bh5 {[%emt 0:00:12]} 12. g4 {[%emt 0:00:14]} Bg6 {[%emt 0:00:
11]} 13. Nxe5 {[%emt 0:00:18]} O-O {[%emt 0:00:19]} 14. Nxg6 {[%emt 0:00:12]}
fxg6 {[%emt 0:00:11]} 15. c3 {[%emt 0:00:31]} dxc3 {[%emt 0:00:11]} 16. Nxc3 {
[%emt 0:00:13]} Bb4 {[%emt 0:00:13]} 17. Qc2 {[%emt 0:00:17]} c5 {[%emt 0:00:
16]} 18. a3 {[%emt 0:00:15]} Ba5 {[%emt 0:00:12]} 19. b4 {[%emt 0:00:11]} cxb4
{[%emt 0:00:11]} 20. axb4 {[%emt 0:00:17]} Bxb4 {[%emt 0:00:11]} 21. Ra4 {
[%emt 0:00:14]} Rb8 {[%emt 0:00:16]} 22. Ba3 {[%emt 0:00:14]} Bxa3 {[%emt 0:00:
12]} 23. Rxa3 {[%emt 0:00:11]} Rb7 {[%emt 0:00:15]} 24. Na4 {[%emt 0:00:19]} h5
{[%emt 0:00:16]} 25. gxh5 {[%emt 0:00:13]} gxh5 {[%emt 0:00:11]} 26. e5 {
[%emt 0:00:12]} Nh7 {[%emt 0:00:15]} 27. e6 {[%emt 0:00:12]} Re8 {[%emt 0:00:
13]} 28. Re1 {[%emt 0:00:13]} Qd6 {[%emt 0:00:14]} 29. Nc5 {[%emt 0:00:20]} Rb5
{[%emt 0:00:20]} 30. Rc3 {[%emt 0:00:26]} g5 {[%emt 0:00:22]} 31. d4 {[%emt 0:
00:17]} Qxd4 {[%emt 0:00:15]} 32. e7 {[%emt 0:00:22]} Qd6 {[%emt 0:00:15]} 33.
Ne4 {[%emt 0:00:18]} Qxe7 {[%emt 0:00:14]} 34. Rxc7 {[%emt 0:00:12]} Qe5 {
[%emt 0:00:20]} 35. Rxa7 {[%emt 0:00:19]} g4 {[%emt 0:00:17]} 36. hxg4 {
[%emt 0:00:12]} hxg4 {[%emt 0:00:11]} 37. Rd1 {[%emt 0:00:18]} Re7 {[%emt 0:00:
20]} 38. Rxe7 {[%emt 0:00:16]} Qxe7 {[%emt 0:00:11]} 39. Qc4+ {[%emt 0:00:13]}
Kh8 {[%emt 0:00:20]} 40. Qxb5 {[%emt 0:00:13]} Qxe4 {[%emt 0:00:12]} 41. Rd8+ {
[%emt 0:00:16]} Kg7 {[%emt 0:00:13]} 42. Rd7+ {[%emt 0:00:17]} Kf6 {[%emt 0:00:
14]} 43. Rd6+ {[%emt 0:00:16]} Ke7 {[%emt 0:00:19]} 44. Qd7+ {[%emt 0:00:17]}
Kf8 {[%emt 0:00:12]} 45. Qc8+ {[%emt 0:00:16]} Ke7 {[%emt 0:00:16]} 46. Qc7+ {
[%emt 0:00:12]} Kf8 {[%emt 0:00:11]} 47. Rd8+ {[%emt 0:00:14]} Qe8 {[%emt 0:00:
15]} 48. Rxe8+ {[%emt 0:00:11]} Kxe8 {[%emt 0:00:11]} 49. Qd6 {[%emt 0:00:13]}
Ng5 {[%emt 0:00:13]} 50. Kg2 {[%emt 0:00:10]} Kf7 {[%emt 0:00:12]} 51. Kg3 {
[%emt 0:00:09]} Kg7 {[%emt 0:00:11]} 52. Kxg4 {[%emt 0:00:10]} Kf7 {[%emt 0:00:
10]} 53. Kxg5 {[%emt 0:00:10]} Ke8 {[%emt 0:00:10]} 54. Kf6 {[%emt 0:00:11]
Game drawn by stalemate} 1/2-1/2

[Event "Fast Chess"]
[Site "ChessKid.com"]
[Date "2020.04.01"]
[Round "3"]
[White "Halimi, Dorian"]
[Black "Li, Tobias"]
[Result "1-0"]
[ECO "C47"]
[WhiteElo "930"]
[BlackElo "1196"]
[PlyCount "61"]
[EventDate "2020.??.??"]
[TimeControl "300+10"]
[WhiteClock "0:02:16"]
[BlackClock "0:03:06"]

1. e4 {[%emt 0:00:10]} e5 {[%emt 0:00:11]} 2. Nf3 {[%emt 0:00:12]} Nc6 {
[%emt 0:00:10]} 3. Nc3 {[%emt 0:00:12]} Bc5 {[%emt 0:00:13]} 4. g3 {[%emt 0:00:
17]} Nf6 {[%emt 0:00:11]} 5. Bh3 {[%emt 0:00:12]} O-O {[%emt 0:00:16]} 6. d3 {
[%emt 0:00:12]} d6 {[%emt 0:00:15]} 7. Bg5 {[%emt 0:00:12]} Qe8 {[%emt 0:00:19]
} 8. Bxf6 {[%emt 0:00:12]} gxf6 {[%emt 0:00:12]} 9. Qe2 {[%emt 0:00:13]} Bxh3 {
[%emt 0:00:11]} 10. O-O-O {[%emt 0:00:13]} Bg2 {[%emt 0:00:11]} 11. Rhg1 {
[%emt 0:00:14]} Bxf3 {[%emt 0:00:13]} 12. Qxf3 {[%emt 0:00:11]} Kh8 {[%emt 0:
00:14]} 13. Nd5 {[%emt 0:00:12]} Qe6 {[%emt 0:00:12]} 14. Nxc7 {[%emt 0:00:11]}
Qe7 {[%emt 0:00:12]} 15. Nxa8 {[%emt 0:00:11]} Rxa8 {[%emt 0:00:14]} 16. h4 {
[%emt 0:00:15]} Rg8 {[%emt 0:00:15]} 17. g4 {[%emt 0:00:16]} Rg6 {[%emt 0:00:
25]} 18. h5 {[%emt 0:00:14]} Rg7 {[%emt 0:00:11]} 19. c3 {[%emt 0:00:22]} Qe6 {
[%emt 0:00:24]} 20. Rd2 {[%emt 0:00:15]} d5 {[%emt 0:00:09]} 21. exd5 {[%emt 0:
00:12]} Qd6 {[%emt 0:00:14]} 22. dxc6 {[%emt 0:00:13]} bxc6 {[%emt 0:00:11]}
23. b4 {[%emt 0:00:15]} Bb6 {[%emt 0:00:14]} 24. Re1 {[%emt 0:00:18]} Qe6 {
[%emt 0:00:36]} 25. d4 {[%emt 0:00:22]} Kg8 {[%emt 0:00:24]} 26. c4 {[%emt 0:
00:15]} Bxd4 {[%emt 0:00:22]} 27. b5 {[%emt 0:00:17]} cxb5 {[%emt 0:00:15]} 28.
cxb5 {[%emt 0:00:12]} Qb6 {[%emt 0:00:12]} 29. a4 {[%emt 0:00:11]} Qe6 {
[%emt 0:00:26]} 30. Qa8+ {[%emt 0:00:14]} Qe8 {[%emt 0:00:14]} 31. Qxe8# {
[%emt 0:00:11] FullMagentaEclipse won by checkmate} 1-0

[Event "Fast Chess"]
[Site "ChessKid.com"]
[Date "2020.04.01"]
[Round "3"]
[White "Sasse, Gabriel"]
[Black "Li, Patrick"]
[Result "1-0"]
[ECO "C55"]
[WhiteElo "1182"]
[BlackElo "965"]
[PlyCount "79"]
[EventDate "2020.??.??"]
[TimeControl "300+10"]
[WhiteClock "0:01:06"]
[BlackClock "0:03:32"]

1. e4 {[%emt 0:00:10]} e5 {[%emt 0:00:10]} 2. Nf3 {[%emt 0:00:10]} Nc6 {
[%emt 0:00:10]} 3. Bc4 {[%emt 0:00:10]} Nf6 {[%emt 0:00:10]} 4. Nc3 {[%emt 0:
00:10]} Bc5 {[%emt 0:00:12]} 5. h3 {[%emt 0:00:10]} h6 {[%emt 0:00:18]} 6. O-O
{[%emt 0:00:10]} O-O {[%emt 0:00:13]} 7. d4 {[%emt 0:00:10]} exd4 {[%emt 0:00:
20]} 8. Nb5 {[%emt 0:00:11]} a6 {[%emt 0:00:18]} 9. Nbxd4 {[%emt 0:00:11]} Bxd4
{[%emt 0:00:12]} 10. Nxd4 {[%emt 0:00:10]} Nxe4 {[%emt 0:00:15]} 11. Nxc6 {
[%emt 0:00:13]} bxc6 {[%emt 0:00:16]} 12. Qg4 {[%emt 0:00:11]} d5 {[%emt 0:00:
13]} 13. Bd3 {[%emt 0:00:13]} Bxg4 {[%emt 0:00:13]} 14. Bxe4 {[%emt 0:00:11]}
Qe7 {[%emt 0:00:35]} 15. hxg4 {[%emt 0:00:11]} Qxe4 {[%emt 0:00:11]} 16. Bd2 {
[%emt 0:00:14]} Qxc2 {[%emt 0:00:11]} 17. Bb4 {[%emt 0:00:13]} Rfd8 {[%emt 0:
00:16]} 18. Be7 {[%emt 0:00:12]} Re8 {[%emt 0:00:16]} 19. Rac1 {[%emt 0:00:11]}
Qg6 {[%emt 0:00:15]} 20. Bb4 {[%emt 0:00:13]} Rab8 {[%emt 0:00:22]} 21. Ba5 {
[%emt 0:00:13]} Rb5 {[%emt 0:00:13]} 22. Bxc7 {[%emt 0:00:12]} Rc8 {[%emt 0:00:
13]} 23. Bg3 {[%emt 0:00:12]} Rxb2 {[%emt 0:00:14]} 24. Ra1 {[%emt 0:00:16]}
Rcb8 {[%emt 0:00:23]} 25. Bxb8 {[%emt 0:00:12]} Qe6 {[%emt 0:00:18]} 26. Bg3 {
[%emt 0:00:15]} Qe2 {[%emt 0:00:13]} 27. Rae1 {[%emt 0:00:16]} Qc2 {[%emt 0:00:
17]} 28. Re8+ {[%emt 0:00:13]} Kh7 {[%emt 0:00:16]} 29. Be5 {[%emt 0:00:17]}
Rxa2 {[%emt 0:00:13]} 30. Rf8 {[%emt 0:00:20]} Qb3 {[%emt 0:00:30]} 31. Rxf7 {
[%emt 0:00:15]} d4 {[%emt 0:00:10]} 32. Rxg7+ {[%emt 0:00:12]} Kh8 {[%emt 0:00:
15]} 33. Rg6+ {[%emt 0:00:11]} Kh7 {[%emt 0:00:30]} 34. Rg7+ {[%emt 0:00:11]}
Kh8 {[%emt 0:00:16]} 35. Bxd4 {[%emt 0:00:11]} Rd2 {[%emt 0:00:22]} 36. Rb7+ {
[%emt 0:00:12]} Kg8 {[%emt 0:00:21]} 37. Rxb3 {[%emt 0:00:11]} Rxd4 {[%emt 0:
00:14]} 38. Rb7 {[%emt 0:00:13]} a5 {[%emt 0:00:13]} 39. Re1 {[%emt 0:00:11]}
a4 {[%emt 0:00:09]} 40. Re8# {[%emt 0:00:12] LimeFarActor won by checkmate} 1-0

[Event "Fast Chess"]
[Site "ChessKid.com"]
[Date "2020.04.02"]
[Round "1"]
[White "Li, Tobias"]
[Black "Hessenberger, Oliver"]
[Result "1-0"]
[ECO "C55"]
[WhiteElo "1189"]
[BlackElo "1180"]
[PlyCount "43"]
[EventDate "2020.??.??"]
[TimeControl "600"]
[WhiteClock "0:08:12"]
[BlackClock "0:08:33"]

1. e4 {[%emt 0:00:21]} e5 {[%emt 0:00:01]} 2. Nf3 {[%emt 0:00:01]} Nc6 {
[%emt 0:00:02]} 3. Nc3 {[%emt 0:00:01]} Nf6 {[%emt 0:00:02]} 4. Bc4 {[%emt 0:
00:01]} Bc5 {[%emt 0:00:04]} 5. Ng5 {[%emt 0:00:03]} O-O {[%emt 0:00:12]} 6.
Nxf7 {[%emt 0:00:05]} Rxf7 {[%emt 0:00:06]} 7. Bxf7+ {[%emt 0:00:01]} Kf8 {
[%emt 0:00:06]} 8. Bb3 {[%emt 0:00:05]} Nb4 {[%emt 0:00:06]} 9. d3 {[%emt 0:00:
05]} d6 {[%emt 0:00:14]} 10. a3 {[%emt 0:00:03]} Ng4 {[%emt 0:00:05]} 11. O-O {
[%emt 0:00:06]} Nxf2 {[%emt 0:00:03]} 12. Rxf2+ {[%emt 0:00:01]} Bxf2+ {
[%emt 0:00:03]} 13. Kxf2 {[%emt 0:00:02]} Qf6+ {[%emt 0:00:02]} 14. Qf3 {
[%emt 0:00:01]} Qxf3+ {[%emt 0:00:03]} 15. Kxf3 {[%emt 0:00:01]} Nc6 {[%emt 0:
00:06]} 16. Kf2 {[%emt 0:00:03]} Bg4 {[%emt 0:00:02]} 17. Bd2 {[%emt 0:00:04]}
Na5 {[%emt 0:00:06]} 18. Rf1 {[%emt 0:00:07]} Bh5 {[%emt 0:00:07]} 19. Kg1+ {
[%emt 0:00:07]} Ke8 {[%emt 0:00:10]} 20. Nd5 {[%emt 0:00:03]} Bf7 {[%emt 0:00:
04]} 21. Nxc7+ {[%emt 0:00:05]} Kd8 {[%emt 0:00:05]} 22. Nxa8 {[%emt 0:00:01]
OnlyHungryKiwi won by resignation} 1-0

[Event "Fast Chess"]
[Site "ChessKid.com"]
[Date "2020.04.02"]
[Round "1"]
[White "Dai, Lana"]
[Black "Gross, Lukas"]
[Result "1-0"]
[ECO "B06"]
[WhiteElo "1211"]
[BlackElo "1138"]
[PlyCount "25"]
[EventDate "2020.??.??"]
[TimeControl "600"]
[WhiteClock "0:08:57"]
[BlackClock "0:08:25"]

1. e4 {[%emt 0:00:12]} g6 {[%emt 0:00:01]} 2. Nf3 {[%emt 0:00:07]} Bg7 {
[%emt 0:00:02]} 3. Bc4 {[%emt 0:00:02]} Nh6 {[%emt 0:00:05]} 4. Nc3 {[%emt 0:
00:01]} O-O {[%emt 0:00:06]} 5. d3 {[%emt 0:00:02]} e6 {[%emt 0:00:03]} 6. Bg5
{[%emt 0:00:08]} Qe8 {[%emt 0:00:05]} 7. Nh4 {[%emt 0:00:32]} f6 {[%emt 0:00:
05]} 8. Bxh6 {[%emt 0:00:03]} Bxh6 {[%emt 0:00:01]} 9. Nb5 {[%emt 0:00:11]} c6
{[%emt 0:00:02]} 10. Nc7 {[%emt 0:00:04]} Qd8 {[%emt 0:00:14]} 11. Nxa8 {
[%emt 0:00:02]} d5 {[%emt 0:00:03]} 12. exd5 {[%emt 0:00:05]} cxd5 {[%emt 0:00:
16]} 13. Bb5 {[%emt 0:00:06] TopBrownCave won - game abandoned} 1-0

[Event "Fast Chess"]
[Site "ChessKid.com"]
[Date "2020.04.02"]
[Round "1"]
[White "Li, Patrick"]
[Black "Sasse, Gabriel"]
[Result "0-1"]
[ECO "C57"]
[WhiteElo "941"]
[BlackElo "1180"]
[PlyCount "32"]
[EventDate "2020.??.??"]
[TimeControl "600"]
[WhiteClock "0:09:08"]
[BlackClock "0:08:15"]

1. e4 {[%emt 0:00:02]} e5 {[%emt 0:00:00]} 2. Nf3 {[%emt 0:00:02]} Nc6 {
[%emt 0:00:01]} 3. Nc3 {[%emt 0:00:02]} Bc5 {[%emt 0:00:00]} 4. Bc4 {[%emt 0:
00:02]} Nf6 {[%emt 0:00:00]} 5. Ng5 {[%emt 0:00:02]} O-O {[%emt 0:00:06]} 6.
Nxf7 {[%emt 0:00:01]} Rxf7 {[%emt 0:00:02]} 7. Bxf7+ {[%emt 0:00:01]} Kxf7 {
[%emt 0:00:01]} 8. O-O {[%emt 0:00:02]} d5 {[%emt 0:00:06]} 9. h3 {[%emt 0:00:
16]} dxe4 {[%emt 0:00:02]} 10. b3 {[%emt 0:00:14]} Nb4 {[%emt 0:00:11]} 11. Nb5
{[%emt 0:00:10]} Qd7 {[%emt 0:00:06]} 12. Nc3 {[%emt 0:00:06]} b6 {[%emt 0:00:
02]} 13. Re1 {[%emt 0:00:15]} Qc6 {[%emt 0:00:02]} 14. Qe2 {[%emt 0:00:19]} Bb7
{[%emt 0:00:06]} 15. Nb5 {[%emt 0:00:01]} e3 {[%emt 0:00:04]} 16. dxe3 {
[%emt 0:00:10]} Qxg2# {[%emt 0:00:03] LimeFarActor won by checkmate} 0-1

[Event "Fast Chess"]
[Site "ChessKid.com"]
[Date "2020.04.02"]
[Round "2"]
[White "Li, Tobias"]
[Black "Dai, Lana"]
[Result "1/2-1/2"]
[ECO "C41"]
[WhiteElo "1190"]
[BlackElo "1210"]
[PlyCount "133"]
[EventDate "2020.??.??"]
[TimeControl "600"]
[WhiteClock "0:03:59"]
[BlackClock "0:06:14"]

1. e4 {[%emt 0:00:18]} e5 {[%emt 0:00:04]} 2. Nf3 {[%emt 0:00:04]} Nc6 {
[%emt 0:00:03]} 3. d4 {[%emt 0:00:02]} d6 {[%emt 0:00:10]} 4. dxe5 {[%emt 0:00:
05]} dxe5 {[%emt 0:00:05]} 5. Qxd8+ {[%emt 0:00:03]} Nxd8 {[%emt 0:00:06]} 6.
Nxe5 {[%emt 0:00:01]} Bd6 {[%emt 0:00:08]} 7. Nf3 {[%emt 0:00:04]} Bg4 {
[%emt 0:00:04]} 8. Be2 {[%emt 0:00:03]} Nc6 {[%emt 0:00:04]} 9. O-O {[%emt 0:
00:03]} Nb4 {[%emt 0:00:06]} 10. Bd3 {[%emt 0:00:14]} Bxf3 {[%emt 0:00:04]} 11.
gxf3 {[%emt 0:00:02]} Nxd3 {[%emt 0:00:05]} 12. cxd3 {[%emt 0:00:02]} O-O-O {
[%emt 0:00:05]} 13. Nc3 {[%emt 0:00:06]} Nf6 {[%emt 0:00:04]} 14. Bg5 {[%emt 0:
00:04]} Rhg8 {[%emt 0:00:15]} 15. Nd5 {[%emt 0:00:03]} h6 {[%emt 0:00:09]} 16.
Bxf6 {[%emt 0:00:08]} gxf6+ {[%emt 0:00:06]} 17. Kh1 {[%emt 0:00:05]} Rg6 {
[%emt 0:00:13]} 18. Rg1 {[%emt 0:00:06]} Rxg1+ {[%emt 0:00:06]} 19. Kxg1 {
[%emt 0:00:02]} Be5 {[%emt 0:00:04]} 20. Kf1 {[%emt 0:00:07]} Bxh2 {[%emt 0:00:
06]} 21. Nxf6 {[%emt 0:00:02]} Rxd3 {[%emt 0:00:03]} 22. Ke2 {[%emt 0:00:09]}
Rd6 {[%emt 0:00:07]} 23. Ng4 {[%emt 0:00:08]} Bf4 {[%emt 0:00:09]} 24. Rd1 {
[%emt 0:00:15]} Rxd1 {[%emt 0:00:05]} 25. Kxd1 {[%emt 0:00:01]} h5 {[%emt 0:00:
11]} 26. Nf6 {[%emt 0:00:03]} h4 {[%emt 0:00:04]} 27. Ng4 {[%emt 0:00:04]} h3 {
[%emt 0:00:03]} 28. Ke1 {[%emt 0:00:01]} h2 {[%emt 0:00:02]} 29. Nxh2 {[%emt 0:
00:02]} Bxh2 {[%emt 0:00:02]} 30. Kf1 {[%emt 0:00:01]} Be5 {[%emt 0:00:23]} 31.
b3 {[%emt 0:00:02]} c5 {[%emt 0:00:04]} 32. Ke2 {[%emt 0:00:01]} b5 {[%emt 0:
00:02]} 33. Kd3 {[%emt 0:00:02]} a5 {[%emt 0:00:08]} 34. a3 {[%emt 0:00:08]}
Kd7 {[%emt 0:00:17]} 35. Ke3 {[%emt 0:00:02]} c4 {[%emt 0:00:06]} 36. bxc4 {
[%emt 0:00:02]} bxc4 {[%emt 0:00:02]} 37. f4 {[%emt 0:00:01]} Bb2 {[%emt 0:00:
06]} 38. a4 {[%emt 0:00:03]} c3 {[%emt 0:00:02]} 39. Kd3 {[%emt 0:00:01]} Ba1 {
[%emt 0:00:04]} 40. Kc2 {[%emt 0:00:02]} Ke6 {[%emt 0:00:08]} 41. Kb1 {[%emt 0:
00:01]} f5 {[%emt 0:00:15]} 42. exf5+ {[%emt 0:00:03]} Kxf5 {[%emt 0:00:02]}
43. Kxa1 {[%emt 0:00:00]} c2 {[%emt 0:00:11]} 44. Kb2 {[%emt 0:00:02]} c1=Q+ {
[%emt 0:00:04]} 45. Kxc1 {[%emt 0:00:02]} Kxf4 {[%emt 0:00:01]} 46. Kd2 {
[%emt 0:00:02]} Ke5 {[%emt 0:00:03]} 47. Kc3 {[%emt 0:00:02]} Kd5 {[%emt 0:00:
04]} 48. Kb3 {[%emt 0:00:01]} Kc5 {[%emt 0:00:01]} 49. f4 {[%emt 0:00:02]} Kd5
{[%emt 0:00:04]} 50. f5 {[%emt 0:00:02]} Ke5 {[%emt 0:00:01]} 51. Kc4 {[%emt 0:
00:01]} Kxf5 {[%emt 0:00:02]} 52. Kb5 {[%emt 0:00:01]} Ke6 {[%emt 0:00:03]} 53.
Kxa5 {[%emt 0:00:01]} Kd6 {[%emt 0:00:02]} 54. Kb5 {[%emt 0:00:01]} Kc7 {
[%emt 0:00:03]} 55. a5 {[%emt 0:00:03]} Kb7 {[%emt 0:00:02]} 56. a6+ {[%emt 0:
00:03]} Ka7 {[%emt 0:00:04]} 57. Ka5 {[%emt 0:00:02]} Kb8 {[%emt 0:00:04]} 58.
Kb5 {[%emt 0:00:02]} Ka7 {[%emt 0:00:03]} 59. Ka5 {[%emt 0:00:02]} Kb8 {
[%emt 0:00:04]} 60. Kb6 {[%emt 0:00:02]} Ka8 {[%emt 0:00:04]} 61. Kc6 {[%emt 0:
00:06]} Ka7 {[%emt 0:00:05]} 62. Kb5 {[%emt 0:00:02]} Kb8 {[%emt 0:00:07]} 63.
Kb6 {[%emt 0:00:02]} Ka8 {[%emt 0:00:09]} 64. Ka5 {[%emt 0:00:04]} Ka7 {
[%emt 0:00:03]} 65. Kb5 {[%emt 0:00:02]} Kb8 {[%emt 0:00:03]} 66. Kc6 {[%emt 0:
00:03]} Ka7 {[%emt 0:00:03]} 67. Kb5 {[%emt 0:00:02] Game drawn by repetition}
1/2-1/2